Cogmind - Beta 16.1 @@@ ROGUE MODE // 2026.02.20 @ 02:30:28 Player: AlmondRoll Result: Destroyed by Decapitator with Experimental Terror Saw Performance ------------- Evolutions (8) 4000 Regions Visited (18) 3600 Robots Destroyed (168) 840 Value Destroyed (7835) 7835 Prototype IDs (124) 2480 Alien Tech Used (3) 600 Bonus (10966) 10966 TOTAL SCORE: 30321 Bonus ------- High Alert Combat Kills 2617 Follower Combat Kills 6816 Registered with UFD 300 Met Optimus in HQ 500 Met Zhirov 300 Scanned by Researcher 500 Friendly Fire -67 Cogmind --------- Core Integrity 0/1450 Matter 171/300 Energy 699/700 System Corruption 60% Temperature Cool (0) Movement Core (50) Location -2/Protoforge Parts ------- > --- POWER (3) -------- (None) > --- PROPULSION (2) --- (None) > --- UTILITY (14) ----- 2N-1CE's Frost Array (fused) Experimental Energy Well > --- WEAPON (4) ------- (None) > --- INVENTORY (5) ---- Light Quantum Reactor Experimental Cooling System Experimental Energy Well (600) Concept Antimissile System Crosscalibrator Peak State ------------ > --- POWER ------------ Graviton Reactor Graviton Reactor Improved Quantum Reactor > --- PROPULSION ------- Compact Wheel Centrium Wheel > --- UTILITY ---------- 2N-1CE's Frost Array Huge Storage Unit Quantum Shading Machine Improved Particle Charger Improved Particle Charger Quantum Capacitor Advanced Transmission Jammer Advanced Phase Shifter Concept Core Shell Improved Heavy Armor Plating Gun Armor Experimental Hardlight Generator > --- WEAPON ----------- Advanced Plasma Cannon 1B-0RG's Assimilator > --- INVENTORY -------- Quantum Reactor Improved Quantum Reactor Wheel Experimental Cooling System Experimental Energy Well Experimental Energy Well Experimental Energy Well Experimental Matter Compressor IFF Parser Advanced Terrain Scan Processor Tactical Coordination Suite Experimental Weapon Shielding Hardened Heavy Armor Plating Centrium Medium Armor Plating Graphene Brace Thermal Defense Suite Concept Antimissile System Transdimensional Reconstructor Subatomic Replicator Long-range Proton Cannon Potential Cannon Improved Potential Cannon [Rating: 229] Favorites ----------- Power Graviton Reactor Engine Light Ion Engine Power Core Neutrino Core Reactor Graviton Reactor Propulsion Compact Wheel Treads Light Treads Leg Aluminum Leg Wheel Compact Wheel Flight Unit Cooled Nuclear Pulse Thruster Utility Huge Storage Unit Device Experimental Terrain Scanner Storage Huge Storage Unit Processor Advanced Terrain Scan Processor Hackware Advanced System Shield Protection Gun Armor Weapon 1B-0RG's Assimilator Energy Gun EM Pulse Gun Energy Cannon Advanced Plasma Cannon Ballistic Gun Light Assault Rifle Ballistic Cannon Light Cannon Launcher Precision Rocket Launcher Impact Weapon Heavy Mace Slashing Weapon Scythe Piercing Weapon Heavy Pick Special Melee Weapon 1B-0RG's Assimilator Build | -11 -10 -10 -7 -5 -5 -5 -5 -5 -4 -4 -4 -4 -3 -3 -3 -2 -2 -2 ------- Run | Yrd Mat Sub Scr Fac Was Fac Upp Upp Fac Upp Upp Zhi Pro Res Tes Res Qua Frg Slots Evolved 16 | . . . . 10 . . . . 2 . . . . 2 . 2 . . Power 2 | . . . . . . . . . 2 . . . . . . . . . Propulsion . | . . . . . . . . . . . . . . . . . . . Utility 12 | . . . . 8 . . . . . . . . . 2 . 2 . . Weapon 2 | . . . . 2 . . . . . . . . . . . . . . Parts Attached 172 | 3 11 11 9 23 6 3 3 5 13 3 3 6 3 8 27 7 9 19 Power 28 | . 2 2 3 . 1 . . 1 4 2 . 1 1 1 4 . 1 5 Engine 8 | . 2 2 2 . . . . 1 1 . . . . . . . . . Core 10 | . . . 1 . . . . . 2 2 . . 1 . 1 . 1 2 Reactor 10 | . . . . . 1 . . . 1 . . 1 . 1 3 . . 3 Propulsion 26 | 2 2 3 2 2 2 . . . 2 . 1 1 . . 3 1 3 2 Treads 2 | 2 . . . . . . . . . . . . . . . . . . Leg . | . . . . . . . . . . . . . . . . . . . Wheel 23 | . 2 3 2 2 2 . . . 2 . 1 . . . 3 1 3 2 Hover . | . . . . . . . . . . . . . . . . . . . Flight 1 | . . . . . . . . . . . . 1 . . . . . . Utility 91 | . 2 1 2 15 2 2 3 4 7 1 2 3 2 5 19 6 5 10 Device 51 | . . . 1 8 1 2 1 1 4 1 . . 2 3 13 4 3 7 Storage 11 | . 1 . . 1 1 . . 1 . . . 2 . . 4 . 1 . Processor 6 | . . . . 3 . . . . . . 1 . . . 1 1 . . Hackware 3 | . . . . . . . . . 2 . . . . 1 . . . . Protection 20 | . 1 1 1 3 . . 2 2 1 . 1 1 . 1 1 1 1 3 Artifact . | . . . . . . . . . . . . . . . . . . . Weapon 27 | 1 5 5 2 6 1 1 . . . . . 1 . 2 1 . . 2 Energy Gun 3 | 1 . 2 . . . . . . . . . . . . . . . . Energy Cannon 6 | . . . . 1 . . . . . . . 1 . 2 . . . 2 Ballistic Gun 4 | . 2 2 . . . . . . . . . . . . . . . . Ballistic Cannon 2 | . 2 . . . . . . . . . . . . . . . . . Launcher 4 | . . . . 1 1 1 . . . . . . . . 1 . . . Special Weapon . | . . . . . . . . . . . . . . . . . . . Impact Weapon 4 | . 1 . 1 2 . . . . . . . . . . . . . . Slashing Weapon 1 | . . . 1 . . . . . . . . . . . . . . . Piercing Weapon 2 | . . 1 . 1 . . . . . . . . . . . . . . Special Melee Weapon 1 | . . . . 1 . . . . . . . . . . . . . . Unidentified Prototypes 36 | . . . . 5 1 . . . 1 . . 6 . 2 13 . 2 6 Corrupted Parts 9 | . . . . . . . . 1 . . . . 1 . 3 . 1 3 System Corruption 48 | . . . . . . . . 6 . . . . 1 . 24 . 5 12 Parts Lost 47 | . 3 6 . 2 2 1 . . 2 . . . . 1 2 1 2 25 Power 8 | . 1 1 . . 1 . . . . . . . . . . . . 5 Propulsion 9 | . 2 2 . . 1 . . . 1 . . . . . . . . 3 Utility 23 | . . 1 . 2 . 1 . . 1 . . . . 1 2 1 1 13 Weapon 7 | . . 2 . . . . . . . . . . . . . . 1 4 Highest Loss Streak 14 | . 1 2 . 2 2 1 . . 1 . . . . 1 1 1 1 14 To Critical Strikes . | . . . . . . . . . . . . . . . . . . . Average Backups 20 | 5 16 19 19 22 22 21 23 23 21 20 22 23 24 23 22 21 21 18 Power 1 | 1 1 1 1 1 1 2 2 2 1 1 . 2 2 2 1 1 2 1 Propulsion 1 | 3 2 . . 1 . 1 2 2 1 1 1 . . . . 1 . . Utility 12 | . 6 6 10 11 15 13 15 15 14 15 16 16 18 17 15 12 12 12 Weapon 5 | 1 6 10 5 9 4 3 3 3 2 2 4 4 3 3 4 4 3 2 Tool/Special . | . . . . . . . . . . . . . . . . . . . Unused Backups 42 | . 1 2 10 5 . 5 1 . . . 2 2 . . 4 1 3 6 Power 8 | . . . 3 . . 1 . . . . . . . . 1 . . 3 Propulsion 7 | . . . . 1 . 2 . . . . . 1 . . . . 3 . Utility 11 | . 1 . 2 1 . 1 1 . . . 1 . . . 1 1 . 2 Weapon 14 | . . 2 5 3 . 1 . . . . . 1 . . 2 . . . Tool/Special 2 | . . . . . . . . . . . 1 . . . . . . 1 Average Slot Usage (%) 78 | . 89 95 92 69 69 77 78 78 77 71 70 65 65 65 69 75 75 63 Engine 3 | . 13 14 2 . . . . . 1 . . . . . . . . . Core 3 | . . . 11 5 2 . . . 6 9 9 5 4 4 3 . . 1 Reactor 4 | . . . . . 1 5 5 5 3 4 4 7 9 8 8 12 12 9 Treads 2 | . 19 . . . . . . . . . . . . . . . . . Wheel 11 | . 8 23 28 10 9 10 10 10 9 9 8 3 4 4 4 8 8 6 Device 15 | . . . 8 19 14 25 23 18 19 19 18 18 18 21 25 28 31 26 Storage 8 | . 14 14 14 5 8 6 10 10 5 4 4 4 4 4 4 4 4 5 Processor 3 | . . . . 8 10 10 10 10 4 4 4 4 4 4 4 5 4 . Protection 8 | . 3 14 5 9 10 8 7 11 8 9 9 9 9 8 7 9 7 6 Energy Gun 1 | . 3 15 . . . . . . . . . . . . . . . . Energy Cannon 1 | . . . . . . . . . 1 2 1 1 3 3 4 4 3 6 Ballistic Gun 3 | . 23 5 . . . . . . . . . . . . . . . . Impact Weapon 2 | . . 5 9 1 . . . . . . . . . . . . . . Piercing Weapon 2 | . . . 7 3 . 4 5 5 2 1 2 2 . . . . . . Special Melee Weapon 2 | . . . . 4 5 5 5 5 4 4 4 4 4 4 4 4 4 1 Peak Build Rating 229 | 6 9 21 38 138 140 141 141 139 158 162 168 170 171 179 205 211 222 229 Average Rating 113 | 5 7 11 31 127 129 136 139 136 149 159 161 166 168 173 190 205 217 164 On Entrance 124 | 6 6 9 21 35 137 122 141 137 138 154 162 166 169 169 179 198 202 222 Avg Prop Armor Cover (%) 10 | . 13 . . 3 . . . . . . . . . . . . . . Naked Turns . | . . . . . . . . . . . . . . . . . . . Heaviest Build 250 | 12 92 94 104 180 175 176 173 181 222 218 218 216 223 236 242 250 244 243 Greatest Support 52 | 40 40 30 32 44 44 44 44 44 44 32 32 28 28 40 52 52 52 52 Greatest Overweight (x) 69 | . 5 9 4 14 5 5 3 5 13 6 7 69 7 8 10 7 7 21 Average Overweight (x) 4 | . 2 4 2 6 3 3 3 3 4 6 6 7 7 7 5 4 4 6 Largest Inventory Capacity 25 | 8 25 25 25 25 25 25 25 25 25 25 25 25 25 25 25 25 25 25 Average Capacity 24 | 8 24 25 25 25 25 25 25 25 25 25 25 25 25 25 25 25 25 24 Most Carried 25 | 8 20 25 25 25 25 25 25 25 25 25 25 25 25 25 25 25 25 25 Average Carried 22 | 4 16 20 24 22 24 23 24 25 24 22 24 24 25 24 24 24 24 20 Final Capacity 25 | 8 25 25 25 25 25 25 25 25 25 25 25 25 25 25 25 25 25 5 Final Carried 25 | 4 20 25 25 25 24 25 25 25 23 25 24 25 25 25 25 25 23 5 Class Distribution -------------------- 50% | Mutant 23% | Assassin 15% | Scavenger-Assassin 6% | Scavenger-Mutant Dominant Class ---------------- Mutant | -10/Materials Mutant | -10/Subcaves Mutant | -7/Scraptown Assassin | -5/Factory Mutant | -5/Waste Assassin | -5/Factory Scavenger-Assassin | -5/Upper Caves Scavenger-Assassin | -5/Upper Caves Scavenger-Mutant | -4/Factory Scavenger-Assassin | -4/Upper Caves Scavenger-Assassin | -4/Upper Caves Assassin | -4/Zhirov Assassin | -3/Proximity Caves Assassin | -3/Research Mutant | -3/Testing Assassin | -2/Research Assassin | -2/Quarantine Mutant | -2/Protoforge Resources | -11 -10 -10 -7 -5 -5 -5 -5 -5 -4 -4 -4 -4 -3 -3 -3 -2 -2 -2 ----------- Run | Yrd Mat Sub Scr Fac Was Fac Upp Upp Fac Upp Upp Zhi Pro Res Tes Res Qua Frg Matter Collected 19871 | 230 291 276 177 1943 258 666 359 1063 2482 730 360 420 82 799 3765 1843 1578 2549 Remotely 6621 | . . . . . . 341 349 676 1854 . . . . 199 1289 764 1149 . Salvage Created 11648 | 92 852 281 . 1288 691 137 54 . 1564 207 115 424 133 385 1806 460 1387 1772 Parts 425 | 1 40 15 . 47 1 14 . . 46 9 6 6 2 16 82 19 49 72 Haulers Intercepted 10 | . 2 . . 3 . . . . 1 . . . . 2 1 . 1 . Recyclers Shooed 14 | 1 . . . 4 . . . . 5 . . . . . 1 2 1 . Parts Field Recycled . | . . . . . . . . . . . . . . . . . . . Retrieved Matter . | . . . . . . . . . . . . . . . . . . . Parts Self-Destructed 48 | . . 7 . . . . 5 20 . 3 2 5 6 . . . . . Prevented 16 | . . . . . . . 2 . . 8 4 . 2 . . . . . Parts Restored . | . . . . . . . . . . . . . . . . . . . Kills | -11 -10 -10 -7 -5 -5 -5 -5 -5 -4 -4 -4 -4 -3 -3 -3 -2 -2 -2 ------- Run | Yrd Mat Sub Scr Fac Was Fac Upp Upp Fac Upp Upp Zhi Pro Res Tes Res Qua Frg Combat Hostiles Destroyed 95 | . 13 3 . 4 4 . . . 1 2 1 . 2 2 17 3 11 32 Guns 12 | . 10 2 . . . . . . . . . . . . . . . . Cannons 28 | . . . . . . . . . 1 . 1 . . 2 6 2 5 11 AOE 25 | . 2 . . 4 4 . . . . . . . 1 . 2 . . 12 Classes Destroyed 25 | 1 8 1 . . 1 1 . . . 1 1 . . . 5 1 . 5 Worker 10 | . 2 . . 2 . . . . 1 . . . . . 4 . . 1 Builder 7 | . 1 . . 1 . . . . . . . . . . 1 1 . 3 Tunneler 2 | . . . . . . 2 . . . . . . . . . . . . Hauler 10 | . 2 . . 3 . . . . 1 . . . . 2 1 . 1 . Recycler 26 | 1 3 . . 7 . 1 . . 10 . . . . . 1 1 2 . Minesweeper 1 | . . . . . . . . . . 1 . . . . . . . . Mechanic 2 | . 1 . . . . . . . . . . . . . . . . 1 Operator 2 | . 2 . . . . . . . . . . . . . . . . . Drone 3 | . . . . . . . . . . . . . . . . . . 3 Watcher 5 | . 1 . . . 1 . . . 3 . . . . . . . . . Swarmer 10 | . 6 . . 4 . . . . . . . . . . . . . . Saboteur 1 | . . . . . . . . . . . . . . . . . . 1 Grunt 36 | . 7 . . . . . . . 1 2 . . 2 2 8 . 6 8 Protector 1 | . . . . . . . . . . . . . . . 1 . . . Researcher 6 | . . . . . . . . . . . . . . . 4 . 1 1 Sentry 3 | . . . . . . . . . . . . . . . . 1 . 2 Hunter 10 | . . . . . . . . . . . . . . . 4 . 4 2 Programmer 10 | . . . . . . . . . . . . . . . 1 1 1 7 Q-Series 4 | . . . . . . . . . . . . . . . 2 . . 2 Behemoth 2 | . . . . . . . . . . . 1 . . . . 1 . . Compactor 4 | . . . . . 4 . . . . . . . . . . . . . Hotshot 2 | . . . . . . . . . . . . . . . . . . 2 Decapitator 3 | . . . . . . . . . . . . . . . . . . 3 Immortal 2 | . . . . . . . . . . . . . . . . . . 2 V-Series 2 | . . . . . . . . . . . . . . . . . . 2 Protovariant G 1 | . . . . . . . . . . . . . . . 1 . . . Subdweller 3 | . . 3 . . . . . . . . . . . . . . . . Best Kill Streak 5 | 1 3 1 . 4 3 2 . . 5 2 1 . 2 3 5 1 4 5 Combat Bots Only 5 | . 3 1 . 4 3 . . . 1 2 1 . 2 1 4 1 4 5 Max Kills in Single Turn 3 | 1 2 1 . 3 2 1 . . 1 1 1 . 1 1 2 1 1 3 Gunslinging . | . . . . . . . . . . . . . . . . . . . Exploded 3 | . 2 . . 3 2 . . . . . . . 1 . 1 . . 3 Melee . | . . . . . . . . . . . . . . . . . . . Uniques/NPCs Destroyed . | . . . . . . . . . . . . . . . . . . . Combat | -11 -10 -10 -7 -5 -5 -5 -5 -5 -4 -4 -4 -4 -3 -3 -3 -2 -2 -2 -------- Run | Yrd Mat Sub Scr Fac Was Fac Upp Upp Fac Upp Upp Zhi Pro Res Tes Res Qua Frg Hostile Shots Fired 785 | . 69 23 . 73 2 4 . 4 86 17 20 . . 11 112 80 123 161 Missed 208 | . 20 6 . 22 . 2 . . 20 3 7 . . . 34 16 44 34 Intercepted 7 | . . . . . . . . . . . . . . . . . . 7 Hits 577 | . 49 17 . 51 2 2 . 4 66 14 13 . . 11 78 64 79 127 Melee 36 | . . . . . 2 . . . . . . . . . . . . 34 Projectile 541 | . 49 17 . 51 . 2 . 4 66 14 13 . . 11 78 64 79 93 AOE 6 | . . 2 . . . . . . . . . . . . . . . 4 Critical Strikes 51 | . . 1 . 3 1 . . 1 5 . 1 . . . 4 3 5 27 Actively Blocked 6 | . . . . . . . . . . . . . . . . . . 6 Part Disruptions 2 | . . . . 1 . . . . . . . . . . . . . 1 Damage Taken 13352 | . 568 505 . 1179 378 57 . 113 1113 234 146 . 28 139 1406 917 1290 5279 Core 2626 | . 131 56 . 293 48 32 . 52 238 31 42 . 16 32 223 163 178 1091 Absorbed by Shields 2973 | . . . . 36 . 9 . . 336 81 40 . 5 46 650 698 762 310 Redirected to Shielding 199 | . . . . . . . . . . . . . . . . . . 199 Ignored by Resistances 472 | . . . . 12 . 4 . 17 71 . . . 5 40 76 149 75 23 Regen/Repaired (Parts) 1730 | . . . . 201 . 54 . 18 322 21 . . . 12 184 141 617 160 Core Remaining (%) 66 | 100 . . 25 . . . . 57 . . . . 71 . 80 . . . Volleys Fired 631 | 2 90 16 . 13 21 . . . 35 16 8 . 8 17 146 40 69 150 Largest 2 | 2 2 2 . 1 1 . . . 1 1 1 . 1 1 1 1 1 1 Hottest 200 | 80 80 90 . 81 43 . . . 81 81 81 . 81 98 98 98 98 200 Shots Fired 723 | 4 176 25 . 12 19 . . . 36 16 8 . 8 17 146 40 68 148 Gun 195 | 4 166 25 . . . . . . . . . . . . . . . . Cannon 506 | . 10 . . 9 . . . . 36 16 8 . 8 17 146 40 68 148 Launcher 22 | . . . . 3 19 . . . . . . . . . . . . . Special . | . . . . . . . . . . . . . . . . . . . Kinetic 136 | . 136 . . . . . . . . . . . . . . . . . Thermal 215 | . . . . . . . . . . . . . . 11 57 40 25 82 Explosive 22 | . . . . 3 19 . . . . . . . . . . . . . Electromagnetic 350 | 4 40 25 . 9 . . . . 36 16 8 . 8 6 89 . 43 66 Robot Hit Streak 11 | 3 8 10 . 4 11 . . . 7 8 4 . 7 8 11 9 10 8 Robot Miss Streak 7 | . 3 2 . 3 1 . . . 2 3 1 . 2 3 4 1 3 7 Penetration Max . | . . . . . . . . . . . . . . . . . . . Secondary Targets 2 | . 2 . . . . . . . . . . . . . . . . . Max Gunslinging Chain 1 | . 1 . . . . . . . . . . . . . . . . . Capacitor 408 | . . . . . . . . . 25 16 8 . 8 17 146 20 68 100 Shots Hit Robots 469 | 3 105 29 . 32 11 3 1 . 40 12 6 8 6 8 82 18 42 63 Core Hits 228 | 2 42 9 . 17 12 3 1 . 17 4 1 4 2 6 36 9 20 43 Critical Kills 6 | . . . . . . . . . . . . . . . . 2 . 4 Critical Parts Destroyed . | . . . . . . . . . . . . . . . . . . . Critical Strikes 18 | . . 2 . 1 . 2 . . 3 . . 1 1 . 1 2 1 4 Meltdown 6 | . . . . . . . . . . . . . . . . 2 . 4 Corrupt 4 | . . 1 . . . . . . . . . . 1 . 1 . 1 . Impale 8 | . . 1 . 1 . 2 . . 3 . . 1 . . . . . . Melee Attacks 115 | . 4 19 . 35 . 9 2 3 18 6 3 8 3 5 . . . . Impact 21 | . 4 10 . 7 . . . . . . . . . . . . . . Slashing . | . . . . . . . . . . . . . . . . . . . Piercing 94 | . . 9 . 28 . 9 2 3 18 6 3 8 3 5 . . . . Sneak Attacks 37 | . . . . 23 . 3 . . 9 2 . . . . . . . . Combat Hostiles . | . . . . . . . . . . . . . . . . . . . Follow-up Attacks . | . . . . . . . . . . . . . . . . . . . Damage Inflicted 27676 | 38 1376 747 . 2102 4248 173 67 . 1734 471 130 511 313 290 4260 668 1988 8560 Guns 1263 | 38 991 234 . . . . . . . . . . . . . . . . Cannons 13114 | . 90 . . 291 . . . . 972 348 130 . 220 290 3369 668 1741 4995 Explosions 9499 | . 193 . . 262 4248 . . . . . . . 93 . 891 . 247 3565 Melee 3698 | . . 513 . 1549 . 173 67 . 762 123 . 511 . . . . . . Ramming 102 | . 102 . . . . . . . . . . . . . . . . . Kinetic 725 | . 725 . . . . . . . . . . . . . . . . . Thermal 10304 | . 32 . . . . . . . . . . . 93 169 1785 668 701 6856 Explosive 4671 | . 161 . . 262 4248 . . . . . . . . . . . . . Electromagnetic 8176 | 38 356 234 . 291 . . . . 972 348 130 . 220 121 2475 . 1287 1704 Impact 128 | . . . . 128 . . . . . . . . . . . . . . Slashing . | . . . . . . . . . . . . . . . . . . . Piercing 3570 | . . 513 . 1421 . 173 67 . 762 123 . 511 . . . . . . Highest Corruption 60 | . 9 9 . 6 30 30 30 29 3 3 . . 1 . 25 6 15 60 Average Corruption 14 | . 6 9 . 4 17 30 27 26 1 2 . . 1 . 4 3 11 39 Corruption Purged 13 | . . . . . . . 7 . . 3 . . . . 3 . . . Corruption Blocked . | . . . . . . . . . . . . . . . . . . . Effects 382 | . 25 63 . 24 12 25 29 31 5 2 . . . . 23 14 43 86 Message Errors 78 | . 5 17 . 4 2 7 9 5 . 1 . . . . 4 1 7 16 Matter Fused 87 | . 7 16 . 4 3 6 6 8 . . . . . . 3 4 11 19 Heat Flow Errors 60 | . 3 8 . 6 2 2 4 4 3 1 . . . . 4 1 6 16 Energy Discharges 49 | . 1 7 . 4 . 4 6 6 1 . . . . . 2 2 7 9 Parts Rejected 8 | . 2 1 . . . . . . . . . . . . . . 2 3 Parts Fused 5 | . . 2 . . 1 . . . . . . . . . . . . 2 Data Loss (minor) 40 | . 3 7 . 3 . 4 . 4 . . . . . . 5 3 5 6 Data Loss (major) 18 | . . 1 . 1 1 1 3 2 . . . . . . 2 1 2 4 Misfires 11 | . 3 2 . . . . . . 1 . . . . . 1 1 . 3 Alerts 10 | . 1 2 . 1 . . 1 2 . . . . . . 1 . 2 . Misdirections 5 | . . . . . 1 1 . . . . . . . . . . . 3 Weapon Failures 11 | . . . . 1 2 . . . . . . . . . 1 1 1 5 Overload Shots . | . . . . . . . . . . . . . . . . . . . Overflow Damage 2518 | . 17 2 . 311 7 . . . 183 36 . 147 . 12 188 3 30 1582 Projectiles 1175 | . 15 . . . . . . . 14 . . . . 12 159 3 30 942 Explosions 678 | . 2 . . . 7 . . . . . . . . . 29 . . 640 Melee 665 | . . 2 . 311 . . . . 169 36 . 147 . . . . . . Knockbacks 2 | . 2 . . . . . . . . . . . . . . . . . Impact 1 | . 1 . . . . . . . . . . . . . . . . . Kinetic 1 | . 1 . . . . . . . . . . . . . . . . . Secondary . | . . . . . . . . . . . . . . . . . . . Self-Inflicted Damage 1606 | . 62 . . 35 265 . . . . . . . . . 58 . . 1186 Shots 22 | . 1 . . 1 5 . . . . . . . . . 1 . . 14 Rammed 13 | . 13 . . . . . . . . . . . . . . . . . Targets Rammed 13 | . 13 . . . . . . . . . . . . . . . . . Kicked . | . . . . . . . . . . . . . . . . . . . Crushed . | . . . . . . . . . . . . . . . . . . . Highest Temperature 423 | 36 278 227 . 238 190 195 244 275 304 423 156 . 264 150 222 64 57 203 Average Temperature 88 | 20 67 95 . 81 97 85 105 119 117 112 79 . 137 65 86 64 21 45 Received Heat Transfer 1107 | . 198 48 . 165 . 6 . 36 109 75 . . . 50 167 84 51 118 Effects 3 | . . . . . . . . . . 3 . . . . . . . . Shutdowns 1 | . . . . . . . . . . 1 . . . . . . . . Energy Bleed 1 | . . . . . . . . . . 1 . . . . . . . . Damage (minor) 1 | . . . . . . . . . . 1 . . . . . . . . Siege Activations . | . . . . . . . . . . . . . . . . . . . Martial Activations . | . . . . . . . . . . . . . . . . . . . Shielding Activations . | . . . . . . . . . . . . . . . . . . . Robots Disrupted 3 | . . 1 . . . . . . 1 . . . . . 1 . . . Combat Hostiles 2 | . . 1 . . . . . . . . . . . . 1 . . . Robots Corrupted 30 | . 1 1 . 1 . . . . 2 2 . . 1 . 10 . 6 6 Combat Hostiles 25 | . 1 1 . . . . . . . 2 . . 1 . 9 . 6 5 Parts Fried 62 | 1 2 2 . 4 . . . . 7 2 . . 2 . 14 . 12 16 Impact Corruptions 3 | . . . . 3 . . . . . . . . . . . . . . Robots Melted 6 | . . . . . . . . . . . . . . . . 2 . 4 Combat Hostiles 5 | . . . . . . . . . . . . . . . . 1 . 4 Parts Melted 15 | . . . . . . . . . . . . . . 1 1 5 . 8 Heat Transferred 8941 | . 50 . . . . . . . . . . . . 250 2100 950 800 4791 Parts Sabotaged . | . . . . . . . . . . . . . . . . . . . Parts Stolen . | . . . . . . . . . . . . . . . . . . . Parts Stripped . | . . . . . . . . . . . . . . . . . . . Power Chain Reactions 8 | . 1 . . . . . . . . . . . 1 . 4 . 1 1 Alert | -11 -10 -10 -7 -5 -5 -5 -5 -5 -4 -4 -4 -4 -3 -3 -3 -2 -2 -2 ------- Run | Yrd Mat Sub Scr Fac Was Fac Upp Upp Fac Upp Upp Zhi Pro Res Tes Res Qua Frg Maximum Alert Level 4 | . . . . 2 1 . . . 2 . . . . 1 4 2 4 4 Low Security (%) 41 | 100 100 . . 40 43 100 . . 69 . . . . 86 1 . . . Level 1 13 | . . . . 42 56 . . . 7 . . . . 13 5 30 10 . Level 2 12 | . . . . 17 . . . . 22 . . . . . 4 69 6 12 Level 3 23 | . . . . . . . . . . . . . . . 76 . 60 49 Level 4 8 | . . . . . . . . . . . . . . . 12 . 22 37 Level 5 . | . . . . . . . . . . . . . . . . . . . High Security . | . . . . . . . . . . . . . . . . . . . Max Security . | . . . . . . . . . . . . . . . . . . . Peak Influence 1371 | 5 166 . . 615 235 112 . . 625 . . . . 298 1137 656 1280 1371 Initial 660 | . . . . . 203 112 . . . . . . . . 159 638 255 660 Average 436 | 1 30 . . 253 197 60 . . 188 . . . . 60 811 496 937 938 Influence Increases 9789 | 5 465 . . 1288 118 202 85 194 1307 125 37 18 99 446 1814 441 1588 1557 Destroy 0b10 Robot/C 4800 | . 260 . . 640 . 100 60 160 600 100 20 . 80 260 820 260 740 700 Destroy 0b10 Robot/NC 500 | 5 60 . . 105 . 15 . . 95 5 . 15 . 15 70 15 50 50 Destroy Leader 816 | . 56 . . 144 . 10 10 . 130 . 10 . 10 36 128 50 108 124 Allied During Kill 1186 | . . . . 134 . 18 15 34 268 20 7 3 9 73 259 74 193 79 Successful Hack 139 | . 15 . . 20 . 8 . . 3 . . . . . 54 . 39 . Disable Machine 615 | . 30 . . 120 . . . . 75 . . . . . 150 . 105 135 Anti-Garrison Action 550 | . . . . . . . . . . . . . . . 200 . 200 150 Destroy Structure 853 | . 14 . . 110 118 6 . . 16 . . . . 32 118 42 93 304 Lose Combat Pursuer 330 | . 30 . . 15 . 45 . . 120 . . . . 30 15 . 60 15 Influence Decreases 8461 | 5 456 9 . 707 538 317 131 194 712 595 159 21 99 162 963 1121 868 1404 Entered New Map 2036 | . . 5 . . 378 49 18 . . 221 25 3 . . 125 497 200 515 Time Decay 4562 | 5 436 4 . 502 100 218 113 66 372 334 94 18 99 132 618 434 458 559 Lost Part 400 | . 20 . . 20 20 10 . . 20 . . . . 10 20 10 20 250 Lost Ally 1463 | . . . . 185 40 40 . 128 320 40 40 . . 20 200 180 190 80 Squads Dispatched 79 | . 2 . . 14 . 1 . 1 10 . . . . 4 15 10 10 12 Investigation 13 | . . . . 4 . . . . 2 . . . . 2 1 3 1 . Extermination 22 | . . . . 5 . . . . 2 . . . . 1 4 3 3 4 Reinforcement 27 | . 2 . . 5 . 1 . . 3 . . . . 1 7 1 4 3 Assault 8 | . . . . . . . . 1 . . . . . . 1 . 1 5 Garrison 9 | . . . . . . . . . 3 . . . . . 2 3 1 . Intercept . | . . . . . . . . . . . . . . . . . . . Searches Triggered . | . . . . . . . . . . . . . . . . . . . Construction Impeded 3 | . . . . 1 . . . . 1 . . . . . 1 . . . Haulers Reinforced 3 | . . . . 3 . . . . . . . . . . . . . . Active Scanning Responses . | . . . . . . . . . . . . . . . . . . . Cargo Convoy Interrupts . | . . . . . . . . . . . . . . . . . . . Stealth | -11 -10 -10 -7 -5 -5 -5 -5 -5 -4 -4 -4 -4 -3 -3 -3 -2 -2 -2 --------- Run | Yrd Mat Sub Scr Fac Was Fac Upp Upp Fac Upp Upp Zhi Pro Res Tes Res Qua Frg Distress Signals 14 | . 2 . . 2 . . . . 3 . . . . . 4 1 1 1 Communications Jammed 72 | . . . . 40 . . . . . . . . . . . 6 26 . Distress Signals 71 | . . . . 40 . . . . . . . . . . . 5 26 . Times Spotted 354 | . 34 6 . 47 6 11 . 12 46 7 4 . 4 16 57 20 37 47 Peak Tracking Total 12 | . 4 2 . 4 5 5 . 7 8 6 2 . 4 4 12 5 7 5 Tactical Retreats 14 | . 2 . . 1 . 1 . . 4 . . . . 2 1 . 2 1 Traps | -11 -10 -10 -7 -5 -5 -5 -5 -5 -4 -4 -4 -4 -3 -3 -3 -2 -2 -2 ------- Run | Yrd Mat Sub Scr Fac Was Fac Upp Upp Fac Upp Upp Zhi Pro Res Tes Res Qua Frg Traps Triggered 12 | . 2 1 . 3 . . . . . . . . . . . . 1 5 Indirectly . | . . . . . . . . . . . . . . . . . . . Trap Hack Attempts . | . . . . . . . . . . . . . . . . . . . Triggered . | . . . . . . . . . . . . . . . . . . . Disarmed . | . . . . . . . . . . . . . . . . . . . Reprogrammed . | . . . . . . . . . . . . . . . . . . . Reused 2 | . . 2 . . . . . . . . . . . . . . . . Traps Extracted . | . . . . . . . . . . . . . . . . . . . Installed 2 | . . 2 . . . . . . . . . . . . . . . . Triggered 1 | . . 1 . . . . . . . . . . . . . . . . Most Traps Carried 2 | . . 2 . . . . . . . . . . . . . . . . Machines | -11 -10 -10 -7 -5 -5 -5 -5 -5 -4 -4 -4 -4 -3 -3 -3 -2 -2 -2 ---------- Run | Yrd Mat Sub Scr Fac Was Fac Upp Upp Fac Upp Upp Zhi Pro Res Tes Res Qua Frg Machines Disabled 61 | . 2 1 . 8 . . . . 5 2 2 . . . 13 . 7 21 Max in Single Turn 2 | . 1 1 . 1 . . . . . 1 1 . . . 1 . 1 2 Garrison Access 3 | . . . . . . . . . . . . . . . 1 . 1 1 Machines Repaired . | . . . . . . . . . . . . . . . . . . . Machines Dismantled . | . . . . . . . . . . . . . . . . . . . Machines Sabotaged . | . . . . . . . . . . . . . . . . . . . Overloaded Fab Kills . | . . . . . . . . . . . . . . . . . . . Hacking | -11 -10 -10 -7 -5 -5 -5 -5 -5 -4 -4 -4 -4 -3 -3 -3 -2 -2 -2 --------- Run | Yrd Mat Sub Scr Fac Was Fac Upp Upp Fac Upp Upp Zhi Pro Res Tes Res Qua Frg Machines Accessed 58 | . 4 1 3 10 . 1 . 2 4 1 . 9 1 3 5 5 6 3 Terminals 21 | . 4 . . 3 . 1 . . . 1 . . 1 . 3 2 3 3 Fabricators 1 | . . . . 1 . . . . . . . . . . . . . . Repair Stations 6 | . . . . 1 . . . . 1 . . . . 1 1 . 2 . Recycling Units 11 | . . . . 4 . . . . 2 . . . . 2 . 3 . . Scanalyzers 2 | . . . . 1 . . . . 1 . . . . . . . . . Garrison Access 2 | . . . . . . . . . . . . . . . 1 . 1 . Total Hacks 170 | . 13 1 12 26 . 2 . 8 11 4 . 48 2 7 11 8 12 5 Successful 117 | . 6 1 12 9 . 1 . 8 8 4 . 48 2 1 5 3 8 1 Failed 52 | . 6 . . 17 . 1 . . 3 . . . . 6 6 5 4 4 Catastrophic 11 | . . . . 3 . . . . 1 . . . . 2 1 3 . 1 Database Lockouts 1 | . 1 . . . . . . . . . . . . . . . . . Manual 49 | . 6 . . 13 . . . . 4 . . . . 7 5 6 6 2 Terminals 50 | . 13 . . 7 . 2 . . . 4 . . 2 . 8 3 6 5 Fabricators 3 | . . . . 3 . . . . . . . . . . . . . . Repair Stations 13 | . . . . 2 . . . . 3 . . . . 1 2 . 5 . Recycling Units 28 | . . . . 12 . . . . 5 . . . . 6 . 5 . . Scanalyzers 5 | . . . . 2 . . . . 3 . . . . . . . . . Garrison Access 2 | . . . . . . . . . . . . . . . 1 . 1 . Terminal Hacks 90 | . 6 1 12 3 . 1 . 8 . 4 . 48 2 . 2 . 2 1 Record 62 | . . . 12 . . . . 7 . 4 . 36 2 . . . 1 . Part Schematic 4 | . . . . . . . . . . . . 4 . . . . . . Robot Analysis 6 | . 2 . . . . . . . . . . 4 . . . . . . Prototype ID Bank 6 | . 2 . . . . . . . . . . 4 . . . . . . Open Door 1 | . . . . . . . . 1 . . . . . . . . . . Branch Access Points 2 | . . . . 1 . 1 . . . . . . . . . . . . Terminal Index 1 | . . . . . . . . . . . . . . . . . 1 . Locate Traps 4 | . 2 . . . . . . . . . . . . . 2 . . . Hauler Manifests 2 | . . . . 2 . . . . . . . . . . . . . . Proto ID Catalog 2 | . . 1 . . . . . . . . . . . . . . . 1 Fabricator Hacks . | . . . . . . . . . . . . . . . . . . . Repair Station Hacks 5 | . . . . . . . . . 3 . . . . . . . 2 . Scan Component 3 | . . . . . . . . . 2 . . . . . . . 1 . Repair 2 | . . . . . . . . . 1 . . . . . . . 1 . Recycling Unit Hacks 4 | . . . . 2 . . . . 1 . . . . . . 1 . . Retrieve Components 4 | . . . . 2 . . . . 1 . . . . . . 1 . . Scanalyzer 2 | . . . . . . . . . 2 . . . . . . . . . Insert Component 1 | . . . . . . . . . 1 . . . . . . . . . Retrieve Study 1 | . . . . . . . . . 1 . . . . . . . . . Garrison Access Hacks . | . . . . . . . . . . . . . . . . . . . Unauthorized Hacks 16 | . . . . 4 . . . . 2 . . . . 1 3 2 4 . Terminals 4 | . . . . 1 . . . . . . . . . . 1 . 2 . Track 2 | . . . . . . . . . . . . . . . 1 . 1 . Botnet 1 | . . . . 1 . . . . . . . . . . . . . . Disrupt 1 | . . . . . . . . . . . . . . . . . 1 . Fabricators . | . . . . . . . . . . . . . . . . . . . Repair Stations 2 | . . . . . . . . . . . . . . . 1 . 1 . Mechanics 2 | . . . . . . . . . . . . . . . 1 . 1 . Recycling Units 8 | . . . . 3 . . . . 2 . . . . 1 . 2 . . Fedlink 8 | . . . . 3 . . . . 2 . . . . 1 . 2 . . Scanalyzers . | . . . . . . . . . . . . . . . . . . . Garrison Access 2 | . . . . . . . . . . . . . . . 1 . 1 . Jam 2 | . . . . . . . . . . . . . . . 1 . 1 . Data Cores Recovered . | . . . . . . . . . . . . . . . . . . . Used . | . . . . . . . . . . . . . . . . . . . Hacking Detections 30 | . 3 . . 9 . . . . 1 . . . 1 3 4 3 4 2 Full Trace Events 4 | . 1 . . 1 . . . . . . . . . 1 . 1 . . Feedback Events . | . . . . . . . . . . . . . . . . . . . Feedback Blocked . | . . . . . . . . . . . . . . . . . . . Robot Schematics Acquired 5 | . . . . . . . . . . . . . . . 3 . 2 . Robots Built . | . . . . . . . . . . . . . . . . . . . Authchips . | . . . . . . . . . . . . . . . . . . . Time . | . . . . . . . . . . . . . . . . . . . Total Robot Build Rating . | . . . . . . . . . . . . . . . . . . . Part Schematics Acquired 24 | . . . . . . . . . . . . 4 . . 16 . 3 1 Parts Built . | . . . . . . . . . . . . . . . . . . . Authchips . | . . . . . . . . . . . . . . . . . . . Time . | . . . . . . . . . . . . . . . . . . . Total Part Build Rating . | . . . . . . . . . . . . . . . . . . . Part Studies Acquired 1 | . . . . . . . . . 1 . . . . . . . . . Parts Repaired 2 | . . . . . . . . . 1 . . . . . . . 1 . Time 76 | . . . . . . . . . 32 . . . . . . . 44 . Parts Recycled . | . . . . . . . . . . . . . . . . . . . Recycled Matter . | . . . . . . . . . . . . . . . . . . . Retrieved Matter . | . . . . . . . . . . . . . . . . . . . Retrieved Components 14 | . . . . 13 . . . . 1 . . . . . . . . . Parts Scanalyzed 1 | . . . . . . . . . 1 . . . . . . . . . Part Schematics Acquired . | . . . . . . . . . . . . . . . . . . . Parts Damaged . | . . . . . . . . . . . . . . . . . . . Bothacking | -11 -10 -10 -7 -5 -5 -5 -5 -5 -4 -4 -4 -4 -3 -3 -3 -2 -2 -2 ------------ Run | Yrd Mat Sub Scr Fac Was Fac Upp Upp Fac Upp Upp Zhi Pro Res Tes Res Qua Frg Used RIF Installer . | . . . . . . . . . . . . . . . . . . . Robots Hacked . | . . . . . . . . . . . . . . . . . . . Non-combat . | . . . . . . . . . . . . . . . . . . . Combat . | . . . . . . . . . . . . . . . . . . . Robot Hacks Applied . | . . . . . . . . . . . . . . . . . . . Relay Couplers Released 8 | . . . . . . . . . 4 . . . . . . . . 4 Programmers 8 | . . . . . . . . . 4 . . . . . . . . 4 Fabnet Peak Effective % . | . . . . . . . . . . . . . . . . . . . Robots Rewired 2 | . . . . . . . . 2 . . . . . . . . . . Allies Hacked 11 | . . . . 2 . . . . 3 . . . . 1 2 2 1 . Hacks Repelled . | . . . . . . . . . . . . . . . . . . . Allies | -11 -10 -10 -7 -5 -5 -5 -5 -5 -4 -4 -4 -4 -3 -3 -3 -2 -2 -2 -------- Run | Yrd Mat Sub Scr Fac Was Fac Upp Upp Fac Upp Upp Zhi Pro Res Tes Res Qua Frg Total Allies 3 | . . . . . 1 . . 2 . . . . . . . . . . Largest Group 2 | . . . . . 1 . . 2 . . . . . . . . . . Highest-Rated Group 60 | . . . . . 31 . . 60 . . . . . . . . . . Highest-Rated Ally 31 | . . . . . 31 . . 30 . . . . . . . . . . Initial UFD Resources 100 | . . . . 38 54 54 54 54 58 72 72 72 74 74 84 86 100 100 Total Orders 11 | . . . . 1 . . 2 . 1 . . . . . 1 . 4 2 ROAM 4 | . . . . . . . 1 . . . . . . . . . 2 1 FOLLOW 1 | . . . . . . . 1 . . . . . . . . . . . AID 4 | . . . . 1 . . . . 1 . . . . . 1 . . 1 EXPLORE 2 | . . . . . . . . . . . . . . . . . 2 . Ally Attacks 846 | . . . . 134 42 20 16 40 153 23 11 . 7 40 135 58 124 43 Total Damage 35647 | . . . . 4968 1061 483 346 1230 5727 505 637 . 522 2339 6190 2478 7181 1980 Kills 187 | . . . . 38 2 5 3 8 35 3 . . 2 13 27 11 32 8 Allies Corrupted 12 | . . . . . . . . 3 1 . . . 1 . 4 1 2 . Allies Melted 3 | . . . . . . . . . 1 . . . . . . 1 . 1 Borg Created 86 | . . . . 17 . 5 1 7 14 3 3 . . 3 11 9 6 7 Largest Collective 5 | . . . . 3 . 3 4 5 5 3 2 . . 3 5 3 3 5 Intel | -11 -10 -10 -7 -5 -5 -5 -5 -5 -4 -4 -4 -4 -3 -3 -3 -2 -2 -2 ------- Run | Yrd Mat Sub Scr Fac Was Fac Upp Upp Fac Upp Upp Zhi Pro Res Tes Res Qua Frg Active Infowar (turns) 14656 | . . . 2009 2024 106 470 634 679 576 713 785 612 795 596 1515 1060 1079 1003 Sensors 2175 | . . . . 1884 95 . . . . . . . . . . 196 . . IFF 9094 | . . . . 104 . 469 634 679 574 710 779 566 782 543 1269 765 625 595 Terrain 11405 | . . . 2009 1907 106 255 634 489 378 707 690 612 787 516 993 659 623 40 Seismic 1056 | . . . . 1056 . . . . . . . . . . . . . . Cloaking 2 | . . . . . . . . . . . . . . . . 2 . . Jamming 4716 | . . . . 1048 . 376 98 2 . . . . . . 113 1060 1076 943 Robot Analysis Total 6 | . 2 . . . . . . . . . . 4 . . . . . . Derelict Logs Recovered 12 | . . 1 4 . . . 3 1 . 2 1 . . . . . . . Drone Launches 3 | . . . . . . . . . . . . . . . . . 3 . Drone Recoveries 1 | . . . . . . . . . . . . . . . . . 1 . Exploration | -11 -10 -10 -7 -5 -5 -5 -5 -5 -4 -4 -4 -4 -3 -3 -3 -2 -2 -2 ------------- Run | Yrd Mat Sub Scr Fac Was Fac Upp Upp Fac Upp Upp Zhi Pro Res Tes Res Qua Frg Turns Passed 23028 | 28 2691 2010 3447 2056 218 506 634 679 940 745 853 612 920 758 2076 1060 1150 1645 Spaces Moved 10805 | 11 907 1093 2329 893 105 213 316 375 398 348 420 254 414 310 820 563 507 529 Core 30 | . . . . . . . . . . . . 1 . . 1 . . 28 Treads 513 | 11 502 . . . . . . . . . . . . . . . . . Legs . | . . . . . . . . . . . . . . . . . . . Wheels 10262 | . 405 1093 2329 893 105 213 316 375 398 348 420 253 414 310 819 563 507 501 Hover . | . . . . . . . . . . . . . . . . . . . Flight . | . . . . . . . . . . . . . . . . . . . Fastest Speed 50 | 160 135 119 119 145 145 145 145 145 145 180 180 205 205 175 145 150 158 50 Average Speed 169 | 160 234 154 131 190 150 154 145 149 161 180 183 217 205 209 182 150 159 191 Slowest Speed 3500 | 160 320 215 145 300 175 175 145 175 285 180 205 3500 205 220 550 195 209 395 Overloaded Moves . | . . . . . . . . . . . . . . . . . . . Propulsion Burnouts . | . . . . . . . . . . . . . . . . . . . Robots Hopped . | . . . . . . . . . . . . . . . . . . . Potential Cave-ins 14 | . . . . . . . . . . . . . . . . . . 14 Cave-ins Triggered 1 | . . . . . . . . . . . . . . . . . . 1 Teleports 1 | . . . . . . . . . . . . . . . . . . 1 Exploration Rate (%) 49 | 2 94 52 92 26 88 5 62 28 13 70 65 63 51 7 86 16 84 28 Regions Visited 18 Branch Regions 11 Pre-discovered Areas 8 | . . 1 1 1 . . 1 1 . . . 3 . . . . . . Known Exits Taken 7 | . . . . . . 1 1 1 1 . . . 1 1 . 1 . . Unknown Exits Taken 9 | 1 1 1 1 . . . . . . 1 1 1 . . 1 . 1 . Scrap Searched 20 | . . 4 9 . . . . . . 2 3 . 2 . . . . . Spaces Dug 174 | . . 2 . 6 . 3 1 2 4 1 1 . 1 7 12 12 6 116 Terrain Destroyed 500 | . 13 2 . 34 116 3 1 2 4 1 1 . 13 7 46 14 13 230 Melee 24 | . . 2 . 6 . 3 1 2 4 1 1 . 1 3 . . . . Projectile 76 | . . . . . . . . . . . . . . 4 16 14 7 35 AOE 400 | . 13 . . 28 116 . . . . . . . 12 . 30 . 6 195 Terrain Rammed . | . . . . . . . . . . . . . . . . . . . Walls Destroyed . | . . . . . . . . . . . . . . . . . . . Machines Disabled . | . . . . . . . . . . . . . . . . . . . Actions | -11 -10 -10 -7 -5 -5 -5 -5 -5 -4 -4 -4 -4 -3 -3 -3 -2 -2 -2 --------- Run | Yrd Mat Sub Scr Fac Was Fac Upp Upp Fac Upp Upp Zhi Pro Res Tes Res Qua Frg Total 14623 | 19 1288 1364 2711 1121 144 360 485 466 606 442 485 298 476 398 1352 720 822 1066 Wait 1873 | . 241 194 337 73 4 93 161 42 73 40 26 . 39 28 126 49 145 202 Move 10787 | 10 906 1092 2328 893 104 212 315 374 397 347 419 253 413 309 819 562 506 528 Hop . | . . . . . . . . . . . . . . . . . . . Pick Up 194 | . 18 14 12 22 1 13 2 . 8 5 3 8 . 3 31 11 17 26 Fast Attach 107 | . 5 2 4 3 1 4 . 6 3 . 3 10 3 5 31 2 8 17 Attach 109 | 2 2 7 . 12 5 5 1 . 7 1 . . . 4 12 6 7 38 Detach 49 | 2 . . . 3 3 . . . 6 . . 1 . 2 9 2 . 21 Swap 357 | 1 7 10 8 30 2 6 2 8 32 18 13 2 7 16 100 19 41 35 Drop 243 | 2 2 8 22 11 3 12 1 6 11 5 7 16 3 6 63 13 21 31 Fire 631 | 2 90 16 . 13 21 . . . 35 16 8 . 8 17 146 40 69 150 Melee 115 | . 4 19 . 35 . 9 2 3 18 6 3 8 3 5 . . . . Ram 5 | . 5 . . . . . . . . . . . . . . . . . Kick . | . . . . . . . . . . . . . . . . . . . Crush 8 | . 8 . . . . . . . . . . . . . . . . . Escape Stasis 17 | . . . . 8 . . . . . . . . . . . . . 9 Rewire 23 | . . . . . . 1 . 19 . . . . . . 3 . . . Trap 2 | . . 2 . . . . . . . . . . . . . . . . Miscellaneous 103 | . . . . 18 . 5 1 8 16 4 3 . . 3 12 16 8 9 Route ------- -11/Scrapyard -10/Materials (discovered 5 exits: [*Mat x3] / [*Min] / *Sub) -10/Subcaves (discovered 2 exits: [*Mat] / *Scr) -7/Scraptown (discovered 2 exits: *Fac x2) -5/Factory (discovered 3 exits: *Fac / Upp x2) -5/Waste -5/Factory (discovered 2 exits: *Upp x2) -5/Upper Caves -5/Upper Caves -4/Factory (discovered 2 exits: *Res / *Upp) -4/Upper Caves -4/Upper Caves (discovered 2 exits: Res / *Zhi) -4/Zhirov -3/Proximity Caves -3/Research (discovered 3 exits: *Res / Arm / *Tes) -3/Testing -2/Research (discovered 2 exits: [*Acc] / *Qua) -2/Quarantine (discovered 3 exits: [*Acc] / [*Sec] / *Frg) -2/Protoforge (discovered 1 exit: [*Acc]) History --------- Turn | Location | Event 13 | -11/Scrapyard | Discovered new exit (range 3) 29 | -11/Scrapyard | Entered Materials 308 | -10/Materials | Build established: Mutant 653 | -10/Materials | Discovered new exit (range 3) 1404 | -10/Materials | Central database locked down 1719 | -10/Materials | Discovered new exit (range 10) 1908 | -10/Materials | Core integrity fell below 50% 2121 | -10/Materials | Discovered new exit (range 12) 2218 | -10/Materials | Discovered new exit (range 16) 2716 | -10/Materials | Discovered new exit (range 3) 2720 | -10/Materials | Entered Subcaves 2721 | -10/Subcaves | Approached by a straggling Scientist 2723 | -10/Subcaves | Discovered new exit (range 9) 2785 | -10/Subcaves | Disturbed a concealed Subdweller 3320 | -10/Subcaves | Learned location of Zion (-6) 3431 | -10/Subcaves | Scientist uncovered a shortcut to Scraptown 4580 | -10/Subcaves | Visited 4L-MR0's lab 4588 | -10/Subcaves | Found Prototype Special Melee Weapon 4600 | -10/Subcaves | Found Gun Armor 4730 | -10/Subcaves | Entered Scraptown 4730 | -7/Scraptown | System corruption cleaned by C-Scrubber 4779 | -7/Scraptown | Heard Great Nut preacher, LISTEN AND RECITE! 4854 | -7/Scraptown | Visited UFD Registry 4854 | -7/Scraptown | Registered with UFD as "Fissionparser" 4871 | -7/Scraptown | Visited Cyclists 4891 | -7/Scraptown | Entered Cyclist Reading Room 4913 | -7/Scraptown | Visited Fellowship of the Rings 4997 | -7/Scraptown | Scanned Subdweller tech in exchange for log data 4999 | -7/Scraptown | Learned location of 2 exits from Upper Caves 5001 | -7/Scraptown | Learned Research terminal intel 5003 | -7/Scraptown | Learned location of Quarantine (-2) 5014 | -7/Scraptown | Discovered new exit (range 11) 5040 | -7/Scraptown | Guru changed UFD alias to "Gearlauncher" 5391 | -7/Scraptown | Visited Bundlers 5504 | -7/Scraptown | Visited SPCMW 5567 | -7/Scraptown | Visited TADAMA 5601 | -7/Scraptown | Visited Spacefarers 6100 | -7/Scraptown | Visited Junk Repository 6155 | -7/Scraptown | Visited Infowarlord's Domain 6167 | -7/Scraptown | Found Exp. Terrain Scanner 6193 | -7/Scraptown | Visited Supply Room 6404 | -7/Scraptown | Visited DA-N13 Charitable Foundation 6432 | -7/Scraptown | Found DCF Scrap (31 items) 6514 | -7/Scraptown | Visited Scrap Suit Storage 6554 | -7/Scraptown | Visited Cartography Club 6759 | -7/Scraptown | Visited Scrapoid Research Area 6796 | -7/Scraptown | Visited LU-1G1's Boring Crew 6861 | -7/Scraptown | Visited Scrapoid Pod Storage 7386 | -7/Scraptown | Discovered new exit (range 22) 8102 | -7/Scraptown | Met Optimus 8102 | -7/Scraptown | Accepted into 0bPrime 8177 | -7/Scraptown | Entered Factory 8177 | -5/Factory | Evolved 10 slots: Utility x8, Weapon x2 8178 | -5/Factory | Attached Gun Armor, gained temporary slots: Weapon x2 8178 | -5/Factory | Identified 1B-0RG's Assimilator 8283 | -5/Factory | Assimilating Sentinel 6a into Collective. 8316 | -5/Factory | Assimilating Veteran 6a into Collective. 8326 | -5/Factory | Assimilating Soldier 6a into Collective. 8334 | -5/Factory | Assimilating Soldier 6b into Collective. 8351 | -5/Factory | Assimilating Soldier 6c into Collective. 8380 | -5/Factory | Lost 4 allies 8660 | -5/Factory | Loaded intel: 8 recycling unit locations 8681 | -5/Factory | Discovered new exit (range 30) 8724 | -5/Factory | Assimilating Soldier 6d into Collective. 8731 | -5/Factory | Assimilating Soldier 6e into Collective. 8765 | -5/Factory | Assimilating Smith 6a into Collective. 8826 | -5/Factory | Build established: Assassin 8857 | -5/Factory | Learned location of Protoforge (-2) 8905 | -5/Factory | Identified exit to Factory 9128 | -5/Factory | Assimilating Soldier 6f into Collective. 9141 | -5/Factory | Assimilating Soldier 6g into Collective. 9157 | -5/Factory | Assimilating Sage 6a into Collective. 9504 | -5/Factory | Assimilating Sage 6b into Collective. 9508 | -5/Factory | Assimilating Sage 6c into Collective. 9699 | -5/Factory | Assimilating Sage 6d into Collective. 9995 | -5/Factory | Assimilating Slayer 6a into Collective. 10015 | -5/Factory | Identified exit to Upper Caves 10060 | -5/Factory | Assimilating Informer 6a into Collective. 10066 | -5/Factory | Assimilating Soldier 6h into Collective. 10233 | -5/Factory | Sucked down chute 10233 | -5/Factory | Entered Waste 10234 | -5/Waste | Met a frightened Derelict 10242 | -5/Waste | Found Prototype Reactor 10248 | -5/Waste | EMP discharged 10248 | -5/Waste | System corruption reached 10% 10250 | -5/Waste | Spotted C-40 Crusher 10253 | -5/Waste | 2 allies followed down the chute 10271 | -5/Waste | Allies destroyed C-40 Crusher 10278 | -5/Waste | Spotted C-40 Crusher 10288 | -5/Waste | Destroyed C-40 Crusher 10288 | -5/Waste | Spotted C-40 Crusher 10290 | -5/Waste | Spotted C-40 Crusher 10294 | -5/Waste | Spotted C-40 Crusher 10297 | -5/Waste | Destroyed C-40 Crusher 10297 | -5/Waste | Destroyed C-40 Crusher 10313 | -5/Waste | Allies destroyed C-40 Crusher 10328 | -5/Waste | Crushed by Compactor (0 parts destroyed, 2 dropped) 10331 | -5/Waste | Crushed by Compactor (1 part destroyed, 1 dropped) 10332 | -5/Waste | Destroyed C-40 Crusher 10348 | -5/Waste | EMP discharged 10430 | -5/Waste | Discovered new exit (range 16) 10448 | -5/Waste | EMP discharged 10448 | -5/Waste | System corruption reached 30% 10450 | -5/Waste | Identified exit to Factory 10451 | -5/Waste | Entered Factory 10492 | -5/Factory | Assimilating Administrator 6a into Collective. 10679 | -5/Factory | Assimilating Veteran 6b into Collective. 10730 | -5/Factory | Assimilating Soldier 6i into Collective. 10736 | -5/Factory | Assimilating Soldier 6j into Collective. 10820 | -5/Factory | Assimilating Virus 6a into Collective. 10957 | -5/Factory | Entered Upper Caves 10957 | -5/Upper Caves | Accompanied by 3 allies 10958 | -5/Upper Caves | Identified exit to Upper Caves 11039 | -5/Upper Caves | Assimilating EB-47T(S) into Collective. 11052 | -5/Upper Caves | Learned 4 Factory zone layouts 11080 | -5/Upper Caves | Entered a destroyed Warlord outpost 11148 | -5/Upper Caves | Learned location of Warlord (-5) 11209 | -5/Upper Caves | Learned location of 1 exit from Proximity Caves 11216 | -5/Upper Caves | Build established: Scavenger-Assassin 11591 | -5/Upper Caves | Entered another Upper Caves area 11591 | -5/Upper Caves | Accompanied by 4 allies 11600 | -5/Upper Caves | Assimilating L1-7QV(S) into Collective. 11637 | -5/Upper Caves | Attracted the attention of an 0b10 outpost 11689 | -5/Upper Caves | Assimilating Warrior 6a into Collective. 11716 | -5/Upper Caves | Lost 5 allies 11807 | -5/Upper Caves | Assimilating Veteran 6c into Collective. 11816 | -5/Upper Caves | Assimilating Soldier 6k into Collective. 11822 | -5/Upper Caves | Assimilating Archangel 6a into Collective. 11831 | -5/Upper Caves | Lost 3 allies 11930 | -5/Upper Caves | Assimilating OO-G8I(S) into Collective. 12039 | -5/Upper Caves | Assimilating IA-OFY(S) into Collective. 12195 | -5/Upper Caves | Entered an active Warlord outpost 12229 | -5/Upper Caves | Learned 8 Research zone layouts 12229 | -5/Upper Caves | Learned Factory trap positions 12229 | -5/Upper Caves | Learned Armory emergency access door positions 12229 | -5/Upper Caves | Learned Factory security intel 12270 | -5/Upper Caves | Entered Factory 12270 | -4/Factory | Accompanied by 5 allies 12270 | -4/Factory | Evolved 2 slots: Power x2 12271 | -4/Factory | Identified exit to Upper Caves 12271 | -4/Factory | Identified Singularity Reactor 12272 | -4/Factory | Loaded intel: 104 trap records 12374 | -4/Factory | Repaired Hrd. Light Armor Plating 12506 | -4/Factory | Found Quantum Capacitor 12596 | -4/Factory | Loaded intel: 8 recycling unit locations 12662 | -4/Factory | Lost 3 allies 12692 | -4/Factory | Assimilating Sage 7a into Collective. 12697 | -4/Factory | Assimilating Sage 7b into Collective. 12752 | -4/Factory | Assimilating Sage 7c into Collective. 12757 | -4/Factory | Discovered new exit (range 19) 12785 | -4/Factory | Assimilating Processor 7a into Collective. 12798 | -4/Factory | Assimilating Virus 7a into Collective. 12812 | -4/Factory | Assimilating Virus 7b into Collective. 12827 | -4/Factory | Assimilating Eye 7a into Collective. 12833 | -4/Factory | Assimilating Veteran 7a into Collective. 12838 | -4/Factory | Assimilating Assassin 7a into Collective. 12841 | -4/Factory | Assimilating Veteran 7b into Collective. 12847 | -4/Factory | Assimilating Veteran 7c into Collective. 12861 | -4/Factory | Garrison activated, responded to threat 12865 | -4/Factory | Lost 7 allies 12909 | -4/Factory | Assimilating Machinist 7a into Collective. 13179 | -4/Factory | Assimilating Master 7a into Collective. 13188 | -4/Factory | Assimilating Sentinel 7a into Collective. 13210 | -4/Factory | Entered Upper Caves 13210 | -4/Upper Caves | Accompanied by 1 ally 13290 | -4/Upper Caves | Learned location of 1 exit from Research 13435 | -4/Upper Caves | Learned Research interactive machine intel 13468 | -4/Upper Caves | Assimilating U1-041(S) into Collective. 13763 | -4/Upper Caves | Attracted the attention of an 0b10 base 13771 | -4/Upper Caves | Assimilating Veteran 7d into Collective. 13776 | -4/Upper Caves | Assimilating Veteran 7e into Collective. 13808 | -4/Upper Caves | Learned 6 Proximity Caves zone layouts 13808 | -4/Upper Caves | Learned Extension emergency access door positions 13824 | -4/Upper Caves | Discovered new exit (range 28) 13955 | -4/Upper Caves | Entered another Upper Caves area 13955 | -4/Upper Caves | Accompanied by 2 allies 13993 | -4/Upper Caves | Discovered new exit (range 27) 14082 | -4/Upper Caves | Learned Research stockpile data 14260 | -4/Upper Caves | Assimilating Assassin 7b into Collective. 14267 | -4/Upper Caves | Assimilating Assassin 7c into Collective. 14355 | -4/Upper Caves | Attacked by a delusional Derelict stockpiling parts 14356 | -4/Upper Caves | Assimilating 8F-8WC(M) into Collective. 14571 | -4/Upper Caves | Discovered new exit (range 29) 14696 | -4/Upper Caves | Destroyed B-86 Titan 14808 | -4/Upper Caves | Entered Zhirov 14808 | -4/Zhirov | Accompanied by 2 allies 14809 | -4/Zhirov | Discovered new exit (range 4) 14847 | -4/Zhirov | Met Zhirov 14895 | -4/Zhirov | Found Alien Artifact 14895 | -4/Zhirov | Identified Integrated Dissipator 14895 | -4/Zhirov | Installed Integrated Dissipator, increased core heat dissipation (+20) 15207 | -4/Zhirov | Found Alien Artifact 15233 | -4/Zhirov | Build established: Assassin 15321 | -4/Zhirov | Learned location of Testing (-3) 15321 | -4/Zhirov | Learned location of Command (-1) 15356 | -4/Zhirov | Zhirov requested help retrieving the SGEMP Prototype 15420 | -4/Zhirov | Entered Proximity Caves 15420 | -3/Proximity Caves | Accompanied by 2 allies 15421 | -3/Proximity Caves | Identified exit to Research 16340 | -3/Proximity Caves | Entered Research 16340 | -3/Research | Accompanied by 1 ally 16340 | -3/Research | Evolved 2 slots: Utility x2 16340 | -3/Research | Discovered new exit (range 6) 16341 | -3/Research | Identified exit to Armory 16342 | -3/Research | Identified exit to Testing 16345 | -3/Research | Loaded intel: 42 interactive machine locations 16346 | -3/Research | Loaded intel: 20 terminal locations 16619 | -3/Research | Assimilating Master 8a into Collective. 16626 | -3/Research | Assimilating Master 8b into Collective. 16758 | -3/Research | Loaded intel: 5 recycling unit locations 17002 | -3/Research | Assimilating Beamer 8a into Collective. 17098 | -3/Research | Entered Testing 17098 | -3/Testing | Accompanied by 2 allies 17190 | -3/Testing | Spotted PG-8GZ79N9K9R 17201 | -3/Testing | Allies destroyed PG-8GZ79N9K9R 17215 | -3/Testing | Garrison activated, responded to threat 17259 | -3/Testing | Found Prototype Device 17259 | -3/Testing | Identified Adv. EM Shield 17272 | -3/Testing | Assimilating Warden 8a into Collective. 17282 | -3/Testing | Discovered new exit (range 19) 17369 | -3/Testing | Assimilating Veteran 8a into Collective. 17379 | -3/Testing | Assimilating Veteran 8b into Collective. 17603 | -3/Testing | Found Prototype Launcher 17603 | -3/Testing | Identified Z-bomb Delivery System 17764 | -3/Testing | Scanned by Researcher 17777 | -3/Testing | Found Prototype Device 17777 | -3/Testing | Identified 2N-1CE's Frost Array 17809 | -3/Testing | Build established: Mutant 17900 | -3/Testing | Found Prototype Energy Cannon 18009 | -3/Testing | Identified Disintegrator 18031 | -3/Testing | Found Prototype Energy Cannon 18070 | -3/Testing | Identified Imp. Potential Cannon 18077 | -3/Testing | Found Prototype Energy Cannon 18079 | -3/Testing | Identified Potential Cannon 18206 | -3/Testing | Lost 4 allies 18403 | -3/Testing | Assimilating Analyst 8a into Collective. 18414 | -3/Testing | Found Prototype Device 18414 | -3/Testing | Identified Exp. Hardlight Generator 18451 | -3/Testing | Assimilating Master 8c into Collective. 18456 | -3/Testing | Assimilating Master 8d into Collective. 18500 | -3/Testing | Spotted PG-9WTZYDV4AC 18517 | -3/Testing | Destroyed PG-9WTZYDV4AC 18598 | -3/Testing | First assault squad dispatched 18703 | -3/Testing | Assimilating Swordsman 8a into Collective. 18706 | -3/Testing | Assimilating Veteran 8c into Collective. 18711 | -3/Testing | Assimilating Veteran 8d into Collective. 18715 | -3/Testing | Assimilating Enforcer 8a into Collective. 18879 | -3/Testing | Assimilating Artificer 8a into Collective. 18978 | -3/Testing | Found Corrupted Prototype Device 18982 | -3/Testing | Identified Exp. Thermal Shield 18983 | -3/Testing | System corruption reached 10% 19174 | -3/Testing | Entered Research 19174 | -2/Research | Accompanied by 3 allies 19174 | -2/Research | Evolved 2 slots: Utility x2 19224 | -2/Research | Spotted B-90 Cyclops 19240 | -2/Research | Destroyed B-90 Cyclops 19381 | -2/Research | Loaded intel: 5 recycling unit locations 19419 | -2/Research | Garrison activated, responded to threat 19633 | -2/Research | Assimilating Enforcer 9a into Collective. 19687 | -2/Research | Build established: Assassin 19696 | -2/Research | Discovered new exit (range 20) 19729 | -2/Research | Assimilating Enforcer 9b into Collective. 19738 | -2/Research | Assimilating Enforcer 9c into Collective. 19744 | -2/Research | Assimilating Enforcer 9d into Collective. 19756 | -2/Research | Assimilating Enforcer 9e into Collective. 19795 | -2/Research | Assimilating Master 9a into Collective. 19824 | -2/Research | Lost 3 allies 19846 | -2/Research | Identified exit to Quarantine 19932 | -2/Research | Discovered new exit (range 22) 20106 | -2/Research | Assimilating Master 9b into Collective. 20112 | -2/Research | Assimilating Master 9c into Collective. 20121 | -2/Research | Assimilating Master 9d into Collective. 20162 | -2/Research | Found Quantum Capacitor 20234 | -2/Research | Entered Quarantine 20234 | -2/Quarantine | Accompanied by 3 allies 20326 | -2/Quarantine | Found Alien Artifact 20377 | -2/Quarantine | Garrison activated, responded to threat 20484 | -2/Quarantine | First assault squad dispatched 20558 | -2/Quarantine | Assimilating Champion 9a into Collective. 20582 | -2/Quarantine | Assimilating Enforcer 9f into Collective. 20607 | -2/Quarantine | Assimilating Enforcer 9g into Collective. 20674 | -2/Quarantine | System corruption reached 10% 20691 | -2/Quarantine | Assimilating Master 9e into Collective. 20700 | -2/Quarantine | Assimilating Master 9f into Collective. 20707 | -2/Quarantine | Assimilating Master 9g into Collective. 20799 | -2/Quarantine | Repaired Hrd. Heavy Armor Plating 20937 | -2/Quarantine | Found Alien Artifact 20937 | -2/Quarantine | Identified Terrabomb 20937 | -2/Quarantine | Used Terrabomb 21117 | -2/Quarantine | Discovered new exit (range 5) 21224 | -2/Quarantine | Spotted Fortress 21337 | -2/Quarantine | Discovered new exit (range 5) 21337 | -2/Quarantine | Discovered new exit (range 6) 21384 | -2/Quarantine | Entered Protoforge 21411 | -2/Protoforge | Assimilating Enforcer 9h into Collective. 21417 | -2/Protoforge | Assimilating Enforcer 9i into Collective. 21426 | -2/Protoforge | Assimilating Enforcer 9j into Collective. 21436 | -2/Protoforge | Assimilating Warden 9a into Collective. 21478 | -2/Protoforge | Assimilating Smith 9a into Collective. 21515 | -2/Protoforge | Spotted Hotshot 21519 | -2/Protoforge | Spotted Hotshot 21535 | -2/Protoforge | Superfortress began startup sequence 21537 | -2/Protoforge | Allies destroyed Hotshot 21541 | -2/Protoforge | Allies destroyed Hotshot 21612 | -2/Protoforge | Lost 4 allies 21619 | -2/Protoforge | Spotted Hotshot 21626 | -2/Protoforge | Spotted Hotshot 21627 | -2/Protoforge | Destroyed Hotshot 21631 | -2/Protoforge | Destroyed Hotshot 21693 | -2/Protoforge | Spotted Hotshot 21697 | -2/Protoforge | Spotted Hotshot 21712 | -2/Protoforge | Build established: Mutant 21737 | -2/Protoforge | Spotted Immortal 21744 | -2/Protoforge | Spotted Immortal 21746 | -2/Protoforge | Spotted Immortal 21748 | -2/Protoforge | Destroyed Immortal 21756 | -2/Protoforge | Destroyed Immortal 21779 | -2/Protoforge | Found Corrupted Prototype Device 21779 | -2/Protoforge | Identified Cep. Antimissile System 21804 | -2/Protoforge | Found Prototype Protection 21809 | -2/Protoforge | Assimilating Master 9h into Collective. 21825 | -2/Protoforge | Assimilating Master 9i into Collective. 21876 | -2/Protoforge | Allies destroyed Immortal 21900 | -2/Protoforge | Discovered new exit (range 27) 22020 | -2/Protoforge | Found Prototype Device 22020 | -2/Protoforge | Identified Exp. Trap Extractor 22021 | -2/Protoforge | System corruption reached 30% 22039 | -2/Protoforge | Identified Cep. Core Shell 22121 | -2/Protoforge | Additional patrols dispatched to research labs 22304 | -2/Protoforge | Crushed by falling debris 22325 | -2/Protoforge | Identified Transdimensional Reconstructor 22335 | -2/Protoforge | Lost 3 parts (1p2n) 22339 | -2/Protoforge | Found Prototype Device 22340 | -2/Protoforge | Identified Crosscalibrator 22452 | -2/Protoforge | Spotted Decapitator 22454 | -2/Protoforge | Spotted Decapitator 22454 | -2/Protoforge | Spotted Decapitator 22454 | -2/Protoforge | Spotted V435-c 22456 | -2/Protoforge | Spotted V394-g 22479 | -2/Protoforge | Destroyed Decapitator 22479 | -2/Protoforge | Destroyed Decapitator 22479 | -2/Protoforge | Destroyed Decapitator 22490 | -2/Protoforge | Core integrity fell below 50% 22503 | -2/Protoforge | Destroyed V435-c 22526 | -2/Protoforge | Destroyed V394-g 22530 | -2/Protoforge | Warped through subspace 22557 | -2/Protoforge | Lost 14 parts (4p9u1w) 22590 | -2/Protoforge | Spotted V818-u 22590 | -2/Protoforge | Spotted V888-i 22634 | -2/Protoforge | First assault squad dispatched 22726 | -2/Protoforge | Spotted V963-x 22743 | -2/Protoforge | Found Cep. Zero-point Core 22756 | -2/Protoforge | Found Cep. Zero-point Core 22785 | -2/Protoforge | Core integrity fell below 20% 22987 | -2/Protoforge | Spotted Decapitator 23029 | -2/Protoforge | Destroyed by Decapitator with Experimental Terror Saw Last Messages --------------- 23003_ Exp. Antimatter Reactor severed. 23005_ Potential Cannon destroyed. 23005_ Destroyed Potential Cannon. 23006_ Cep. Zero-point Core severed. 23007_ 6S65DDQQYQ58W,MXVNCX3U/K=%2%INHQGO6<83D7 23009_ Acquired Cep. Zero-point Core. 23009_ Lrn. Proton Cannon severed. 23010_ Acquired Lrn. Proton Cannon. 23012_ Lrn. Proton Cannon destroyed. 23014_ Dropped Huge Storage Unit. 23014_ Dropped Cep. Zero-point Core. 23022_ IFF Parser severed. 23025_ Decapitator system corruption misinterpreted. 23025_ Decapitator triggered Stasis Trap. 23025_ A bubble of rippling energy engulfs the area. 23025_ Field strength at 89. 23025_ Field strength at 78. 23026_ Field strength at 67. 23027_ Field strength at 56. 23028_ Field strength at 45. Map ----- +----------------------------------------------------+ | ?????????????????????????????????????????????????? | | ?????????????????????????????????????????????????? | | ?????????????????????????????????????????????????? | | ?????????????????????????????????????????????????? | | ?????????????????????????????????????????????????? | | ?????????????????????????????????????????????????? | | ?????????????????????????????????????????????????? | | ?????????????????????????????????????????????????? | | ?????????????????????????????????????????????????? | | ?????????????????????????????????????????????????? | | ????????????? ?????????????????????????????????? | | ????????????# #????????????????????????????????? | | ????????????# #????????????????????????????????? | | ????????????# #????????????????????????????????? | | ????????????# #????????????????????????????????? | | ????????????# #????????????????????????????????? | | ????????????# #????##??????????????????????????? | | ????????????# #??? #??????????????????????????? | | ????????????# #?? ???????????????????????????? | | ????????????# #? ????????????????????????????? | | ????????????# # ?????????????????????????????? | | ????????????# # ???????????????????"##"""##???? | | ?????????#### ?????????????????? "???? | | ?????????# #* #?????????????????? ""???? | | ??????????# !!* ################## """????? | | ????????????#!!! @ ^ """????? | | ????????????#!! c ""???? | | ???????#????#* ###### #### #"" "#??? | | ????#? ##???# #???# #?# #??? "???? | | ??? # ????# #???## ##?#######????""""""""#???? | | ### # ?????# #????###??????????????? ??????? | | #??????# #??????????????????????? ??????? | | ???????# #?????????????????????????"??????? | | ##???????# #????????????????????????????????? | | #???????# #????????????????????????????????? | | #???????# #????????????????????????????????? | | / ##???????# #????????????????????????????????? | | " "#??????# #????????????????????????????????? | | """""#??????# #???????????????###############??? | | ?####???????# #???????????????#""" """"#??? | | ???????????? #???????????????#" "#??? | | ??????????? #???????????????#" "#??? | | ??????????? # #???????????????##### ""##??? | | ??????????### #?????????????????# % "#??? | | ????????????# #?????????????????# "#??? | | ??????????# # ################### % ""#??? | | ??????????# # $ """#??? | | ?????????# # """#??? | | #????????##?# #########++######## ""#??? | | #???????????# #??????? ?????# "#??? | +----------------------------------------------------+ Best States ------------- Heat Dissipation 169 Energy Generation 81 Energy Capacity 2030 Matter Stores 800 Matter Capacity 800 Sight Range 16 Robot Scan Range 16 Terrain Scan Range 30 Terrain Scan Density 210 Jamming Range 16 Additional Mass Support 20 Base Temperature (-) 100 Armor Coverage 1425 Resistance: TH 20 Resistance: EM 50 Core Shielding 90 Power Shielding 90 Weapon Shielding 90 Point Defense Rating 480 Phase Shifting 15 Evasion (%) 55 Recoil Reduction 2 Energy Filtering 50 Particle Charging 30 Defensive Hacking 24 Item Schematics ----------------- Assault Drone Bay | -4/Zhirov | Free Exp. Heat Sink | -4/Zhirov | Free Exp. Optical Array | -4/Zhirov | Free Imp. Arc Thrower | -4/Zhirov | Free Mni. Fusion Reactor | -3/Testing | Archive Hvy. Proton Cannon | -3/Testing | Archive Exp. Energy Well | -3/Testing | Archive Cld. Phase Cannon | -3/Testing | Archive Imp. Matter Compressor | -3/Testing | Archive Quantum Shading Machine | -3/Testing | Archive Fusion Reactor | -3/Testing | Archive Cld. Gravmag System | -3/Testing | Archive Enh. Coil Gun | -3/Testing | Archive Cld. Antigrav System | -3/Testing | Archive Proton Burst Cannon | -3/Testing | Archive Enh. Multireflex Exoskeleton | -3/Testing | Archive Hvy. Tesla Rifle | -3/Testing | Archive Imp. Thermal Defense Suite | -3/Testing | Archive Exp. Thermal Shield | -3/Testing | Archive Prc. Phase Gun | -3/Testing | Archive Vibroblade | -2/Quarantine | Archive Imp. Quantum Reactor | -2/Quarantine | Archive Exp. Gyrokinetic Inverter | -2/Quarantine | Archive Com. Linear Accelerator | -2/Protoforge | Archive Robot Schematics ------------------ R-10 Processor | -3/Testing | Archive S-43 Plague | -3/Testing | Archive B-74 Champion | -3/Testing | Archive T-07 Excavator | -2/Quarantine | Archive A-02 Transporter | -2/Quarantine | Archive Fabricated ------------ Nothing Repaired ---------- Hrd. Light Armor Plating | 71% | -4/Factory Hrd. Heavy Armor Plating | 15% | -2/Quarantine Studied --------- Com. Wheel | -4/Factory | Hacked Alien Tech Used ----------------- Integrated Dissipator Terrabomb Transdimensional Reconstructor Achievements -------------- DIY Cooler IP Theft Longdome?! Nice Directions, Buddy Tailor-made Well-fed Force Field Challenges ------------ None Game ------ Seed GaussModifiedSabre Manual? 0 Play Time 06:26:07 Cumulative 471.8 hours Start 2026.02.18 @ 22:39:10 End 2026.02.20 @ 02:30:28 Sessions 3 Manual Loads 0 Difficulty Rogue Special Mode None Game No. 223 Rogue 223 Adventurer 0 Explorer 0 Win Type - Total 15 Types 8/0/5/2/0/0/0/0/0/0 Lore% 75 Gallery% 73 Achievement% 54 Wizard Run 0 Options --------- Layout 0 ASCII 0 Keyboard 0 Movement Numpad Keybinds 0 Fullscreen 1 Font 18/SmallcapsGlow Map View 76x50 Zoom Use 0% Tactical HUD 1 Map Filters NONE Filters NONE Steam 1 RUN: 2c5e4c5b-acdd-420a-b825-255f8426d6e5